bitfinex-derivatives/quotes_BTCF0:USTF0_20241208
["timestamp","ask_amount","ask_price","bid_price","bid_amount"]
[1733646213078,0.11929799,99439.0,99438.0,0.045224]
[1733646213276,0.41616781,99447.0,99438.0,0.045224]
[1733646213579,0.04887676,99446.0,99438.0,0.045224]
[1733646214868,0.045222,99443.0,99438.0,0.045224]
[1733646215374,0.14924506,99442.0,99438.0,0.045224]
[1733646215677,0.14924506,99441.0,99438.0,0.047224]
[1733646215883,0.14924506,99442.0,99438.0,0.049224]
[1733646216075,0.14924506,99441.0,99438.0,0.047224]
[1733646216277,0.14924506,99441.0,99438.0,0.049224]
[1733646216781,0.14924506,99442.0,99438.0,0.048224]
[1733646217085,0.14924506,99441.0,99438.0,0.048224]
[1733646217681,0.14924506,99442.0,99439.0,0.00628502]
[1733646217982,0.14924506,99442.0,99440.0,0.00628502]
[1733646218187,0.14924506,99442.0,99441.0,0.00628502]
[1733646218889,0.14924506,99443.0,99441.0,0.00628502]
[1733646219188,0.3608,99447.0,99442.0,0.00628502]
[1733646219386,0.3608,99447.0,99440.0,0.046223]
[1733646219387,0.04887682,99446.0,99443.0,0.00628502]
[1733646219684,0.04887682,99446.0,99444.0,0.01131293]
[1733646219877,0.04887682,99446.0,99445.0,0.01131293]
[1733646221181,0.14927636,99446.0,99445.0,0.05653393]
[1733646221676,0.14927636,99446.0,99445.0,0.0596763]
[1733646222285,0.14927636,99446.0,99445.0,0.0606763]
[1733646222485,0.14927636,99446.0,99445.0,0.0626763]
[1733646222884,0.14927636,99446.0,99445.0,0.06267595]
[1733646224985,0.51007636,99447.0,99446.0,0.045221]
[1733646225184,0.51007636,99447.0,99446.0,0.08977595]
[1733646225583,0.3608,99447.0,99446.0,0.08977595]
[1733646226395,0.51007636,99447.0,99446.0,0.08977595]
[1733646226699,0.51007636,99447.0,99446.0,0.09077595]
[1733646226881,0.3608,99447.0,99446.0,0.09077595]
[1733646227288,0.51007636,99447.0,99446.0,0.09077595]
[1733646227887,0.3608,99447.0,99446.0,0.09077595]
[1733646228088,0.3608,99447.0,99446.0,0.08977595]
[1733646228294,0.51007636,99447.0,99446.0,0.09077595]
[1733646231190,0.3608,99447.0,99446.0,0.09077595]
[1733646231592,0.14927636,99448.0,99446.0,0.04555495]
[1733646231790,0.14927636,99448.0,99447.0,0.05967495]
[1733646235602,0.14927636,99448.0,99447.0,0.06067495]
[1733646236193,0.15937636,99449.0,99448.0,0.04522]
[1733646236389,0.15937636,99449.0,99448.0,0.05967495]
[1733646238309,0.0101,99449.0,99448.0,0.05967495]
[1733646238607,0.0101,99449.0,99448.0,0.09235354]
[1733646239404,0.0101,99449.0,99448.0,0.20459199]
[1733646239606,0.0101,99449.0,99448.0,0.19013431]
[1733646239794,0.0101,99449.0,99448.0,0.20458709]
[1733646239999,0.11946631,99456.0,99455.0,0.045217]
[1733646240000,0.09684481,99456.0,99455.0,0.045217]
[1733646240199,0.14927636,99463.0,99455.0,0.45314564]
[1733646240499,0.14927636,99466.0,99460.0,0.045214]
[1733646240700,0.14927636,99464.0,99461.0,0.04712864]
[1733646240896,0.14931825,99464.0,99463.0,0.045213]
[1733646241095,0.04886552,99464.0,99463.0,0.05966578]
[1733646241301,0.17899492,99468.0,99463.0,0.05966578]
[1733646241505,0.22786044,99468.0,99464.0,0.01445278]
[1733646241694,0.22786044,99468.0,99463.0,0.045213]
[1733646241695,0.04886552,99467.0,99465.0,0.00628341]
[1733646242010,0.04886552,99467.0,99463.0,0.045213]
[1733646242011,0.002,99464.0,99458.0,0.005]
[1733646242301,0.3608,99461.0,99459.0,0.00502678]
[1733646242503,0.3608,99461.0,99460.0,0.00502678]
[1733646242703,0.40966741,99461.0,99460.0,0.00502678]
[1733646243094,0.45488141,99461.0,99460.0,0.00502678]
[1733646243296,0.45488174,99461.0,99460.0,0.00502678]
[1733646244409,0.45688174,99461.0,99460.0,0.00502678]
[1733646244599,0.45688174,99461.0,99458.0,0.005]
[1733646244600,0.56895743,99461.0,99458.0,0.005]
[1733646244797,0.045215,99459.0,99458.0,0.005]
[1733646245012,0.045217,99456.0,99455.0,0.045217]
[1733646245212,0.2244455,99456.0,99455.0,0.045217]
[1733646245401,0.09408474,99456.0,99455.0,0.045217]
[1733646246513,0.04886774,99456.0,99455.0,0.045217]
[1733646246710,0.04886774,99460.0,99448.0,0.04522]
[1733646247006,0.14938046,99456.0,99449.0,0.03267774]
[1733646247202,0.14938046,99456.0,99455.0,0.045217]
[1733646247804,0.15038046,99456.0,99455.0,0.045217]
[1733646248006,0.04987045,99456.0,99455.0,0.045217]
[1733646249906,0.04987045,99456.0,99455.0,0.05150122]
[1733646250806,0.09508645,99456.0,99455.0,0.00628422]
[1733646252411,0.09508718,99456.0,99455.0,0.05150122]
[1733646254016,0.09508718,99456.0,99455.0,0.05464336]
[1733646254411,0.28435632,99456.0,99455.0,0.05464336]
[1733646254606,0.28435632,99456.0,99455.0,0.05967078]
[1733646256311,0.10512782,99456.0,99455.0,0.05967078]
[1733646257213,0.10512896,99456.0,99455.0,0.05967078]
[1733646257712,0.09508832,99456.0,99455.0,0.05967078]
[1733646261025,0.09508832,99456.0,99450.0,0.045219]
[1733646261208,0.14944272,99452.0,99451.0,0.01445368]
[1733646262217,0.14944272,99452.0,99451.0,0.04713157]
[1733646262521,0.14944272,99452.0,99451.0,0.01445368]
[1733646262818,0.12681962,99453.0,99451.0,0.04713163]
[1733646263024,0.12681962,99453.0,99452.0,0.04713163]
[1733646263221,0.04886979,99453.0,99452.0,0.01445368]
[1733646263521,0.04887014,99455.0,99452.0,0.01445368]
[1733646263725,0.04887014,99454.0,99453.0,0.01445368]
[1733646263914,0.04887014,99455.0,99453.0,0.01445368]
[1733646264114,0.04887014,99454.0,99450.0,0.045219]
[1733646264318,0.04886974,99453.0,99451.0,0.05879772]
[1733646264517,0.045216,99456.0,99452.0,0.01445338]
[1733646264716,0.045216,99456.0,99453.0,0.01445338]
[1733646264717,0.04887042,99455.0,99453.0,0.01445338]
[1733646265017,0.04887042,99455.0,99454.0,0.01445338]
[1733646265320,0.22452241,99455.0,99454.0,0.01445338]
[1733646265517,0.27339283,99455.0,99454.0,0.01445386]
[1733646266825,0.09408742,99455.0,99454.0,0.01445386]
[1733646267124,0.27339283,99455.0,99454.0,0.01445386]
[1733646267326,0.27439283,99455.0,99454.0,0.01445386]
[1733646268419,0.27439283,99455.0,99450.0,0.045219]
[1733646268626,0.04887042,99454.0,99450.0,0.045219]
[1733646268922,0.04887042,99454.0,99451.0,0.01445368]
[1733646269121,0.04887042,99454.0,99452.0,0.01445368]
[1733646269321,0.04887042,99454.0,99453.0,0.01445368]
[1733646270131,0.22817583,99454.0,99453.0,0.01445368]
[1733646270629,0.04887042,99454.0,99453.0,0.01445368]
[1733646271427,0.22817583,99454.0,99453.0,0.01445368]
[1733646272129,0.22817583,99454.0,99453.0,0.01445354]
[1733646272432,0.04887042,99454.0,99453.0,0.01445354]
[1733646273023,0.3608,99461.0,99453.0,0.01445354]
[1733646273024,0.045215,99458.0,99453.0,0.01445354]
[1733646273225,0.17945364,99454.0,99451.0,0.045218]
[1733646273430,0.17945364,99454.0,99452.0,0.01445347]
[1733646273733,0.17945364,99454.0,99453.0,0.01445347]
[1733646274234,0.04887042,99454.0,99453.0,0.01445347]
[1733646274436,0.17945364,99455.0,99453.0,0.01445347]
[1733646274731,0.17945364,99455.0,99454.0,0.01445347]
[1733646275134,0.04886979,99457.0,99454.0,0.01445347]
[1733646275321,0.04886979,99456.0,99455.0,0.01445347]
[1733646275526,0.04886979,99457.0,99455.0,0.01445372]
[1733646275830,0.045215,99458.0,99451.0,0.045218]
[1733646275831,0.22833679,99456.0,99451.0,0.045218]
[1733646276022,0.04886979,99455.0,99452.0,0.01445349]
[1733646276229,0.04886979,99454.0,99453.0,0.01445349]
[1733646276534,0.180467,99456.0,99453.0,0.01445349]
[1733646276745,0.04886979,99455.0,99454.0,0.01445349]
[1733646276935,0.22833679,99455.0,99454.0,0.01445349]
[1733646277236,0.04886979,99455.0,99454.0,0.01445349]
[1733646277820,0.02624664,99455.0,99454.0,0.01445349]
[1733646278033,0.15763016,99455.0,99454.0,0.01445349]
[1733646278332,0.045216,99456.0,99454.0,0.01445349]
[1733646278630,0.15763016,99455.0,99452.0,0.005]
[1733646278822,0.045216,99456.0,99453.0,0.01445398]
[1733646279022,0.045216,99456.0,99450.0,0.045219]
[1733646279023,0.15806345,99455.0,99454.0,0.01445398]
[1733646279426,0.001,99455.0,99454.0,0.01445398]
[1733646279629,0.045216,99456.0,99454.0,0.01445398]
[1733646279828,0.15706791,99455.0,99454.0,0.045217]
[1733646280029,0.15706791,99455.0,99454.0,0.05967063]
[1733646280333,0.40661401,99461.0,99457.0,0.045216]
[1733646280527,0.15721918,99460.0,99458.0,0.01445363]
[1733646280734,0.15721918,99459.0,99457.0,0.045216]
[1733646280925,0.406654,99461.0,99458.0,0.01445348]
[1733646281230,0.15720512,99460.0,99459.0,0.01445348]
[1733646282532,0.15720512,99460.0,99459.0,0.01445354]
[1733646282930,0.15920512,99460.0,99459.0,0.01445354]
[1733646283233,0.002,99460.0,99459.0,0.05966854]
[1733646283633,0.18148043,99460.0,99459.0,0.05966854]
[1733646283935,0.3608,99469.0,99459.0,0.05856306]
[1733646284127,0.15807132,99468.0,99460.0,0.05856306]
[1733646284337,0.00011839,99473.0,99467.0,0.3608]
[1733646284531,0.00011839,99473.0,99472.0,0.045209]
[1733646284731,0.00011839,99473.0,99472.0,0.05845898]
[1733646284944,0.00011839,99473.0,99472.0,0.10366798]
[1733646285136,0.00011839,99473.0,99472.0,0.11309167]
[1733646285432,0.00011839,99473.0,99472.0,0.08921444]
[1733646285635,0.00011839,99473.0,99472.0,0.10366415]
[1733646285942,0.00211839,99473.0,99472.0,0.10366415]
[1733646286439,0.00211839,99473.0,99472.0,0.09232917]
[1733646288741,0.00211839,99473.0,99472.0,0.05965871]
[1733646288943,0.00211839,99473.0,99472.0,0.09232894]
[1733646292138,0.00211839,99473.0,99472.0,0.08416171]
[1733646292343,0.00211839,99473.0,99472.0,0.09232953]
[1733646292535,0.00211839,99473.0,99472.0,0.09232958]
[1733646293034,0.3608,99481.0,99472.0,0.09232958]
[1733646293239,0.3608,99481.0,99480.0,0.045205]
[1733646293441,0.3608,99481.0,99480.0,0.05965535]
[1733646293640,0.14918314,99484.0,99480.0,0.05965535]
[1733646293945,0.14918314,99485.0,99481.0,0.01445035]
[1733646294244,0.14918314,99487.0,99482.0,0.01445035]
[1733646294537,0.3709,99495.0,99476.0,0.005]
[1733646294538,0.14918314,99491.0,99483.0,0.01445035]
[1733646294739,0.3709,99495.0,99491.0,0.0452]
[1733646294740,0.14918314,99493.0,99491.0,0.0452]
[1733646294935,0.14918314,99494.0,99492.0,0.01445035]
[1733646295239,0.50998314,99495.0,99493.0,0.01479634]
[1733646295439,0.50998314,99495.0,99494.0,0.01444864]
[1733646295644,0.50998314,99495.0,99494.0,0.01444855]
[1733646295939,0.55518214,99495.0,99494.0,0.01444855]
[1733646296342,0.405999,99495.0,99494.0,0.01444855]
[1733646297231,0.405999,99495.0,99494.0,0.01544855]
[1733646297429,0.409999,99495.0,99494.0,0.01544855]
[1733646298449,0.409999,99495.0,99494.0,0.06064755]
[1733646299442,0.3648,99495.0,99494.0,0.06064755]
[1733646299736,0.3648,99495.0,99494.0,0.06099524]
[1733646300134,0.48401424,99495.0,99494.0,0.06099524]
[1733646300537,0.48401424,99495.0,99494.0,0.046199]
[1733646300737,0.48401424,99495.0,99494.0,0.06099446]
[1733646301641,0.48401424,99495.0,99494.0,0.06064693]
[1733646301938,0.48401424,99495.0,99494.0,0.06064682]
[1733646301939,0.004,99495.0,99494.0,0.06064682]
[1733646302644,0.004,99495.0,99494.0,0.09331042]
[1733646303547,9.404e-05,99497.0,99496.0,0.045198]
[1733646303747,9.404e-05,99497.0,99496.0,0.05964582]
[1733646304846,0.00109404,99497.0,99496.0,0.05964582]
[1733646309846,0.00109404,99497.0,99496.0,0.09230798]
[1733646311757,0.00109404,99497.0,99496.0,0.05964582]
[1733646312049,0.00109404,99497.0,99496.0,0.0923083]
[1733646313853,0.00109404,99497.0,99496.0,0.05964582]
[1733646315148,0.01137567,99497.0,99496.0,0.05964582]
[1733646315351,0.04629204,99497.0,99496.0,0.05964515]
[1733646315555,0.04629204,99497.0,99496.0,0.01444715]
[1733646315856,0.11872231,99497.0,99496.0,0.01444715]
[1733646318657,0.11872231,99497.0,99496.0,0.01444986]
[1733646319449,0.32486875,99497.0,99488.0,0.04981502]
[1733646319655,0.58513464,99489.0,99488.0,0.04981502]
[1733646319859,0.63399282,99489.0,99488.0,0.04981502]
[1733646320559,0.45485918,99489.0,99488.0,0.00561402]
[1733646321349,0.45485918,99489.0,99478.0,0.0101]
[1733646321658,0.45485918,99489.0,99476.0,0.0015077]
[1733646321659,0.045206,99478.0,99476.0,0.0467147]
[1733646321848,0.04886225,99477.0,99476.0,0.0467147]
[1733646322658,0.045206,99478.0,99476.0,0.0467147]
[1733646323563,0.04886223,99477.0,99476.0,0.0467147]
[1733646323755,0.045206,99478.0,99476.0,0.0467147]
[1733646324453,0.001,99477.0,99476.0,0.04706269]
[1733646324652,0.15020817,99477.0,99476.0,0.0467147]
[1733646324857,0.14920817,99477.0,99476.0,0.0467147]
[1733646325255,0.14920817,99477.0,99476.0,0.04706263]
[1733646325458,0.51000817,99477.0,99476.0,0.0467147]
[1733646325852,0.51000817,99477.0,99471.0,0.045209]
[1733646325853,0.045209,99473.0,99471.0,0.045209]
[1733646326258,0.11933772,99472.0,99471.0,0.045209]
[1733646327156,0.045209,99471.0,99468.0,0.00010112]
[1733646327359,0.045209,99471.0,99469.0,0.03267215]
[1733646327559,0.045209,99471.0,99470.0,0.00628311]
[1733646329555,0.045209,99471.0,99470.0,0.0123096]
[1733646329868,0.045209,99471.0,99470.0,0.0133096]
[1733646331462,0.045209,99471.0,99470.0,0.01645116]
[1733646332661,0.045209,99471.0,99470.0,0.01645117]
[1733646334669,0.11933772,99472.0,99470.0,0.01645117]
[1733646334866,0.11933772,99472.0,99471.0,0.01445117]
[1733646335067,0.11933772,99473.0,99471.0,0.01445117]
[1733646335258,0.11933772,99473.0,99472.0,0.01445117]
[1733646335564,0.045208,99475.0,99472.0,0.01445117]
[1733646335868,0.045208,99475.0,99470.0,0.04721]
[1733646335869,0.045208,99475.0,99473.0,0.0144511]
[1733646336061,0.045208,99475.0,99474.0,0.0144511]
[1733646338464,0.045208,99475.0,99474.0,0.0154511]
[1733646342564,0.19441617,99475.0,99474.0,0.01545104]
[1733646343570,0.045208,99475.0,99474.0,0.01545104]
[1733646343770,0.0940697,99475.0,99474.0,0.01545104]
[1733646343967,0.045208,99475.0,99474.0,0.01545104]
[1733646344675,0.09406878,99475.0,99474.0,0.01545104]
[1733646344873,0.09406878,99475.0,99474.0,0.06065904]
[1733646345375,0.07145025,99475.0,99474.0,0.06065904]
[1733646345773,0.04886078,99475.0,99474.0,0.06065904]
[1733646346072,0.17915029,99477.0,99474.0,0.06065871]
[1733646346274,0.17915029,99477.0,99475.0,0.01445071]
[1733646346465,0.17915029,99478.0,99476.0,0.01445071]
[1733646346666,0.17915029,99478.0,99474.0,0.046208]
[1733646346667,0.04886023,99477.0,99475.0,0.045207]
[1733646346968,0.2282296,99476.0,99475.0,0.045207]
[1733646347163,0.17936937,99476.0,99475.0,0.05965744]
[1733646347473,0.005,99480.0,99475.0,0.05965744]
[1733646347474,0.18436937,99480.0,99479.0,0.045206]
[1733646347672,0.17941324,99481.0,99480.0,0.045205]
[1733646347866,0.17941324,99481.0,99480.0,0.05965544]
[1733646348172,0.17941324,99482.0,99480.0,0.05965544]
[1733646348368,0.17941324,99482.0,99481.0,0.01445044]
[1733646348568,0.005,99485.0,99482.0,0.045204]
[1733646348569,0.17941324,99483.0,99482.0,0.045204]
[1733646348771,0.17941324,99484.0,99482.0,0.05965444]
[1733646348975,0.005,99485.0,99484.0,0.045204]
[1733646349164,0.06365334,99490.0,99484.0,0.01445044]
[1733646349165,0.07887383,99490.0,99484.0,0.01445044]
[1733646349366,0.07887383,99490.0,99480.0,0.001]
[1733646349367,0.045202,99488.0,99485.0,0.01445044]
[1733646349565,0.07887383,99490.0,99480.0,0.001]
[1733646349566,0.20299269,99487.0,99486.0,0.01445044]
[1733646350171,0.045204,99483.0,99482.0,0.001]
[1733646350375,0.20299469,99483.0,99482.0,0.001]
[1733646351574,0.045206,99480.0,99472.0,0.0432]
[1733646351785,0.3608,99475.0,99473.0,0.045209]
[1733646353071,0.3608,99475.0,99473.0,0.047209]
[1733646353468,0.3608,99475.0,99473.0,0.049209]
[1733646353675,0.3608,99475.0,99474.0,0.045208]
[1733646354785,0.37085228,99475.0,99474.0,0.045208]
[1733646355282,0.37085228,99475.0,99474.0,0.047208]
[1733646355980,0.37085228,99475.0,99474.0,0.049208]
[1733646356786,0.3608,99475.0,99474.0,0.049208]
[1733646357470,0.406008,99475.0,99474.0,0.049208]
[1733646358074,0.406008,99475.0,99474.0,0.05549109]
[1733646358281,0.406008,99475.0,99467.0,0.0101]
[1733646358479,0.406008,99475.0,99461.0,0.00329973]
[1733646358480,0.045214,99462.0,99461.0,0.00329973]
[1733646358781,0.045214,99462.0,99455.0,0.045217]
[1733646358782,0.045216,99456.0,99455.0,0.045217]
[1733646359387,0.22453774,99456.0,99455.0,0.045217]
[1733646359581,0.045216,99456.0,99455.0,0.04530937]
[1733646360083,0.045216,99456.0,99455.0,0.05033689]
[1733646360382,0.045216,99456.0,99455.0,0.05633689]
[1733646360583,0.045216,99456.0,99455.0,0.01111989]
[1733646360980,0.045216,99456.0,99455.0,0.01411989]
[1733646361177,0.22453774,99456.0,99455.0,0.01411989]
[1733646361785,0.045216,99456.0,99455.0,0.01411989]
[1733646362173,0.045216,99456.0,99455.0,0.01726213]
[1733646362575,0.09408889,99456.0,99455.0,0.01726213]
[1733646364482,0.045216,99456.0,99455.0,0.01726213]
[1733646365080,0.19438742,99456.0,99455.0,0.01726213]
[1733646366392,0.14917142,99456.0,99455.0,0.0687636]
[1733646366587,0.15417142,99461.0,99455.0,0.0235466]
[1733646366883,0.08948319,99458.0,99456.0,0.37525423]
[1733646367081,0.005,99461.0,99457.0,0.01445306]
[1733646367282,0.08948319,99462.0,99458.0,0.01445306]
[1733646367475,0.08948319,99463.0,99462.0,0.045214]
[1733646367678,0.08948319,99463.0,99462.0,0.05966706]
[1733646367879,0.08948319,99463.0,99462.0,0.09234069]
[1733646368488,0.08948319,99463.0,99462.0,0.09233931]
[1733646368689,0.08948319,99463.0,99462.0,0.09433931]
[1733646369189,0.08948319,99463.0,99462.0,0.09733931]
[1733646370288,0.08948319,99463.0,99462.0,0.10033931]
[1733646370688,0.11932102,99468.0,99463.0,0.045213]
[1733646370689,0.08948319,99464.0,99463.0,0.045213]
[1733646370887,0.08948319,99464.0,99463.0,0.09233831]
[1733646371790,0.11932102,99467.0,99464.0,0.045213]
[1733646371988,0.11932102,99467.0,99466.0,0.045212]
[1733646372192,0.11932102,99467.0,99466.0,0.05966368]
[1733646372889,0.11932102,99467.0,99466.0,0.05966354]
[1733646374695,0.11932102,99467.0,99466.0,0.06366354]
[1733646375196,0.11932102,99467.0,99466.0,0.06166354]
[1733646375392,0.11932102,99467.0,99466.0,0.06566354]
[1733646376087,0.11932102,99469.0,99467.0,0.045211]
[1733646376291,0.0101,99470.0,99469.0,0.04521]
[1733646376594,0.0101,99470.0,99469.0,0.12263426]
[1733646377990,0.0101,99470.0,99469.0,0.12463426]
[1733646378486,0.0101,99470.0,99469.0,0.12663426]
[1733646378699,0.08950364,99475.0,99474.0,0.045208]
[1733646378900,0.08950364,99475.0,99474.0,0.45312551]
[1733646379590,0.0101,99487.0,99478.0,0.045206]
[1733646379591,0.11932102,99479.0,99478.0,0.045206]
[1733646379894,0.11932102,99479.0,99478.0,0.05965536]
[1733646380190,0.07357471,99490.0,99484.0,0.045204]
[1733646380401,0.07357471,99490.0,99486.0,0.045203]
[1733646380402,0.30175355,99490.0,99486.0,0.045203]
[1733646380695,0.0488571,99489.0,99487.0,0.01444936]
[1733646380890,0.0488571,99489.0,99488.0,0.01444936]
[1733646381293,0.0488571,99489.0,99486.0,0.04555107]
[1733646381802,0.045203,99486.0,99485.0,0.00034807]
[1733646381990,0.406003,99486.0,99480.0,0.00034807]
[1733646382187,0.14913037,99481.0,99480.0,0.04555306]
[1733646382387,0.14913037,99481.0,99480.0,0.045205]
[1733646382783,0.0488571,99481.0,99480.0,0.045205]
[1733646382990,0.58592475,99486.0,99480.0,0.045205]
[1733646382991,0.045204,99484.0,99480.0,0.045205]
[1733646383195,0.0488571,99483.0,99480.0,0.04555298]
[1733646383400,0.0488571,99483.0,99481.0,0.045205]
[1733646384492,0.001,99481.0,99480.0,0.045205]
[1733646384796,0.0498591,99481.0,99480.0,0.045205]
[1733646385099,0.14911034,99481.0,99480.0,0.0455533]
[1733646385489,0.14909496,99481.0,99480.0,0.045205]
[1733646385690,0.15009496,99481.0,99480.0,0.04555311]
[1733646386693,0.001,99481.0,99480.0,0.04555311]
[1733646386998,0.001,99481.0,99480.0,0.045205]
[1733646387197,0.04986066,99481.0,99480.0,0.045205]
[1733646387493,0.001,99481.0,99480.0,0.045205]
[1733646387797,0.046205,99481.0,99480.0,0.045205]
[1733646387995,0.09506561,99481.0,99480.0,0.045205]
[1733646388193,0.046205,99481.0,99480.0,0.045205]
[1733646389094,0.001,99481.0,99480.0,0.045205]
[1733646389308,0.15007706,99481.0,99480.0,0.05148791]
[1733646389492,0.15007706,99481.0,99480.0,0.05183602]
[1733646389691,0.15007706,99481.0,99480.0,0.05148791]
[1733646389893,0.001,99481.0,99480.0,0.05148791]
[1733646390103,0.15009425,99481.0,99480.0,0.05148791]
[1733646390693,0.001,99481.0,99480.0,0.05148791]
[1733646391000,0.001,99481.0,99480.0,0.05183602]
[1733646391499,0.15009723,99481.0,99480.0,0.05651413]
[1733646391698,0.0498595,99481.0,99480.0,0.05651413]
[1733646392092,0.0498595,99481.0,99480.0,0.05686237]
[1733646392402,0.0498595,99481.0,99480.0,0.05651406]
[1733646392601,0.001,99481.0,99480.0,0.05651406]
[1733646392801,0.001,99481.0,99480.0,0.045205]
[1733646393100,0.001,99481.0,99480.0,0.05651382]
[1733646393304,0.001,99481.0,99480.0,0.05965507]
[1733646395389,0.15015719,99481.0,99480.0,0.05965507]
[1733646395594,0.15015719,99481.0,99480.0,0.045205]
[1733646395898,0.15015719,99481.0,99480.0,0.05965452]
[1733646396093,0.001,99481.0,99480.0,0.05965452]
[1733646396291,0.15015719,99481.0,99480.0,0.05965452]
[1733646396497,0.04985705,99481.0,99480.0,0.05965452]
[1733646406807,0.04985644,99481.0,99480.0,0.05965452]
[1733646407003,0.02723976,99481.0,99480.0,0.05965452]
[1733646407194,0.17932174,99483.0,99481.0,0.045205]
[1733646407400,0.17932174,99483.0,99482.0,0.01444952]
[1733646407601,0.01009478,99486.0,99482.0,0.01444952]
[1733646407808,0.045203,99486.0,99483.0,0.01444952]
[1733646408008,0.3608,99487.0,99485.0,0.045203]
[1733646408203,0.15525519,99486.0,99485.0,0.045203]
[1733646408403,0.15525519,99486.0,99485.0,0.05965265]
[1733646409005,0.37090183,99487.0,99486.0,0.045203]
[1733646409304,0.52621263,99487.0,99486.0,0.05965265]
[1733646409506,0.57141463,99487.0,99486.0,0.05965265]
[1733646409895,0.21061463,99487.0,99486.0,0.05965265]
[1733646410101,0.57241463,99487.0,99486.0,0.05965265]
[1733646410606,0.57541463,99487.0,99486.0,0.01444965]
[1733646410907,0.57541463,99487.0,99480.0,0.005]
[1733646411216,0.045207,99476.0,99475.0,0.0101]
[1733646411400,0.5161108,99476.0,99464.0,0.0101]
[1733646411602,0.5161108,99476.0,99464.0,0.045213]
[1733646411603,0.58522169,99465.0,99464.0,0.045213]
[1733646411906,0.406013,99465.0,99464.0,0.045213]
[1733646412207,0.41588737,99465.0,99464.0,0.045213]
[1733646412412,0.41588737,99465.0,99460.0,0.00150799]
[1733646412413,0.37067437,99465.0,99460.0,0.00150799]
[1733646412612,0.22433646,99461.0,99460.0,0.00150799]
[1733646412800,0.22433646,99461.0,99460.0,0.04672199]
[1733646413405,0.045214,99461.0,99460.0,0.04672199]
[1733646413812,0.045214,99461.0,99460.0,0.05072199]
[1733646414114,0.045214,99461.0,99460.0,0.05272199]
[1733646416014,0.045214,99461.0,99460.0,0.00750799]
[1733646416515,0.045214,99461.0,99460.0,0.0078562]
[1733646416710,0.045214,99461.0,99460.0,0.00750799]
[1733646417014,0.045214,99461.0,99460.0,0.006]
[1733646417311,0.406014,99461.0,99460.0,0.006]
[1733646419617,0.406014,99461.0,99460.0,0.01228467]
[1733646420106,0.406014,99461.0,99460.0,0.006]
[1733646420911,0.406014,99461.0,99460.0,0.01102787]
[1733646421307,0.58483007,99461.0,99460.0,0.01102787]
[1733646422112,0.63370642,99461.0,99460.0,0.01102787]
[1733646422315,0.45489035,99461.0,99460.0,0.01102787]
[1733646423012,0.45489035,99461.0,99460.0,0.01417029]
[1733646423221,0.45489035,99461.0,99460.0,0.00914242]
[1733646425904,0.45489035,99461.0,99460.0,0.00314242]
[1733646426109,0.45489035,99461.0,99460.0,0.00013313]
[1733646427219,0.45489035,99461.0,99455.0,9.237e-05]
[1733646427220,0.045216,99456.0,99455.0,9.237e-05]
[1733646428411,0.045216,99456.0,99455.0,0.00309237]
[1733646429019,0.045216,99456.0,99455.0,0.00809237]
[1733646430415,0.19395366,99456.0,99455.0,0.00809237]
[1733646430616,0.19395366,99456.0,99455.0,0.01312044]
[1733646430809,0.09409416,99456.0,99455.0,0.00809237]
[1733646431011,0.09409416,99456.0,99445.0,0.0421]
[1733646431012,0.045221,99446.0,99445.0,0.0421]
[1733646431320,0.045221,99446.0,99445.0,0.032]
[1733646431321,0.406021,99446.0,99445.0,0.032]
[1733646431517,0.52501175,99446.0,99445.0,0.032]
[1733646432308,0.52501175,99446.0,99445.0,0.037]
[1733646432513,0.52601175,99446.0,99445.0,0.0573137]
[1733646432712,0.52601175,99446.0,99445.0,0.05102831]
[1733646433217,0.407021,99446.0,99445.0,0.05102831]
[1733646433817,0.407021,99446.0,99445.0,0.01902831]
[1733646434730,0.407021,99446.0,99445.0,0.01402831]
[1733646435020,0.407021,99446.0,99445.0,0.01602831]
[1733646435615,0.406021,99446.0,99445.0,0.00702831]
[1733646435812,0.4159574,99446.0,99445.0,0.01202831]
[1733646436223,0.56474303,99446.0,99445.0,0.01202831]
[1733646436414,0.46484055,99446.0,99445.0,0.01202831]
[1733646436616,0.045225,99436.0,99435.0,0.0409]
[1733646436821,0.406025,99436.0,99435.0,0.0308]
[1733646437925,0.406025,99436.0,99435.0,0.0358]
[1733646438230,0.406025,99436.0,99435.0,0.04522896]
[1733646438524,0.406025,99436.0,99435.0,0.03894298]
[1733646438822,0.406025,99436.0,99416.0,0.01250953]
[1733646438823,0.045232,99422.0,99416.0,0.01250953]
[1733646439015,0.045232,99422.0,99408.0,0.0322]
[1733646439016,0.045238,99409.0,99408.0,0.0322]
[1733646439218,0.3608,99409.0,99408.0,0.03848665]
[1733646439521,0.3608,99409.0,99408.0,0.0384874]
[1733646440521,0.3618,99409.0,99408.0,0.0434874]
[1733646441129,0.3618,99409.0,99408.0,0.0464874]
[1733646441427,0.45104973,99409.0,99408.0,0.0464874]
[1733646441831,0.3618,99409.0,99408.0,0.0464874]
[1733646443124,0.37212737,99409.0,99408.0,0.0464874]
[1733646443626,0.001,99409.0,99408.0,0.0917254]
[1733646443826,0.005,99414.0,99412.0,0.045236]
[1733646444134,0.005,99414.0,99413.0,0.08338364]
[1733646444436,0.0101,99415.0,99414.0,0.045235]
[1733646444620,0.0101,99415.0,99414.0,0.051522]
[1733646444815,0.0101,99415.0,99414.0,0.0967181]
[1733646445227,0.00511366,99419.0,99418.0,0.045234]
[1733646445418,0.00011366,99419.0,99418.0,0.051521]
[1733646446721,0.00011366,99419.0,99418.0,0.05655006]
[1733646447028,0.00011366,99419.0,99418.0,0.05955006]
[1733646447226,0.00011366,99419.0,99418.0,0.05954939]
[1733646447416,0.00011366,99419.0,99418.0,0.06054939]
[1733646450818,0.00011366,99419.0,99418.0,0.06369255]
[1733646453330,0.04534666,99419.0,99418.0,0.01845855]
[1733646454235,0.1644215,99419.0,99418.0,0.01845855]
[1733646454434,0.04534666,99419.0,99418.0,0.01845855]
[1733646455022,0.40614666,99419.0,99418.0,0.01845855]
[1733646455232,0.55501727,99419.0,99418.0,0.01845855]
[1733646455433,0.55501727,99419.0,99418.0,0.0008569]
[1733646455434,0.455042,99419.0,99418.0,0.0008569]
[1733646456529,0.63366976,99419.0,99418.0,4.454e-05]
[1733646456731,0.63367418,99419.0,99410.0,0.00034802]
[1733646456932,0.3608,99411.0,99410.0,0.00034833]
[1733646457130,0.045239,99407.0,99406.0,0.045239]
[1733646457529,0.045239,99407.0,99406.0,0.04558733]
[1733646458230,0.045239,99407.0,99406.0,0.045239]
[1733646458426,0.1643363,99407.0,99406.0,0.045239]
[1733646459034,0.1190973,99409.0,99408.0,0.045238]